bitfinex/quotes_SOLUSD_20230120
["timestamp","ask_amount","ask_price","bid_price","bid_amount"]
[1674199428952,10.0,21.143,21.125,35.51]
[1674199428953,17.0,21.142,21.127,35.5]
[1674199429169,17.0,21.142,21.122,10.0]
[1674199429170,35.48,21.141,21.125,35.51]
[1674199429374,27.0,21.14,21.123,45.51]
[1674199429994,27.0,21.14,21.123,10.0]
[1674199430205,10.0,21.138,21.123,10.0]
[1674199430411,17.0,21.137,21.123,10.0]
[1674199431053,17.0,21.137,21.122,10.0]
[1674199431361,52.49,21.137,21.122,10.0]
[1674199431569,10.0,21.136,21.122,10.0]
[1674199431803,17.0,21.135,21.122,10.0]
[1674199432012,17.0,21.135,21.12,10.0]
[1674199432199,52.49,21.135,21.12,10.0]
[1674199432639,52.49,21.135,21.121,20.0]
[1674199433038,17.0,21.135,21.121,20.0]
[1674199433250,17.0,21.136,21.122,10.0]
[1674199433461,17.0,21.136,21.123,21.92]
[1674199433671,17.0,21.136,21.123,20.0]
[1674199434939,17.0,21.136,21.124,10.0]
[1674199435153,35.49,21.137,21.125,0.96]
[1674199435370,35.48,21.141,21.126,0.96]
[1674199435580,35.48,21.141,21.127,0.96]
[1674199435795,35.48,21.141,21.128,0.96]
[1674199436857,35.48,21.141,21.129,0.96]
[1674199437256,35.47,21.146,21.13,20.32]
[1674199437461,10.0,21.149,21.131,11.92]
[1674199437670,10.0,21.149,21.132,20.0]
[1674199437880,10.0,21.149,21.133,10.0]
[1674199438195,10.0,21.149,21.134,21.92]
[1674199438404,35.47,21.148,21.134,21.92]
[1674199438824,10.0,21.147,21.134,21.92]
[1674199439050,52.47,21.146,21.134,1.92]
[1674199439259,35.47,21.146,21.134,1.92]
[1674199439459,35.46,21.15,21.134,1.92]
[1674199439666,35.46,21.15,21.134,21.92]
[1674199439883,35.46,21.15,21.135,10.0]
[1674199440116,35.46,21.15,21.136,1.92]
[1674199440500,17.0,21.149,21.136,1.92]
[1674199441673,35.46,21.151,21.136,1.92]
[1674199441877,108.4321,21.154,21.136,1.92]
[1674199441878,35.46,21.154,21.14,20.32]
[1674199442090,40.32,21.17,21.14,20.32]
[1674199442091,10.0,21.162,21.141,11.92]
[1674199442315,35.45,21.161,21.142,20.0]
[1674199442718,53.75576951,21.16,21.137,10.0]
[1674199442941,35.45,21.159,21.138,1.92]
[1674199443154,48.92,21.158,21.138,1.92]
[1674199443338,35.45,21.157,21.138,1.92]
[1674199443552,10.0,21.155,21.133,45.49]
[1674199443782,36.42,21.154,21.136,0.96]
[1674199444008,10.0,21.152,21.136,0.96]
[1674199444224,35.46,21.151,21.136,0.96]
[1674199444431,17.0,21.15,21.136,0.96]
[1674199444956,35.47,21.149,21.136,0.96]
[1674199445384,35.46,21.152,21.137,1.92]
[1674199446313,10.0,21.151,21.137,1.92]
[1674199446641,52.46,21.15,21.137,1.92]
[1674199447038,52.46,21.15,21.137,0.96]
[1674199447249,52.46,21.15,21.136,0.96]
[1674199449577,52.46,21.15,21.136,1.92]
[1674199450198,35.46,21.15,21.137,0.96]
[1674199450418,35.46,21.152,21.137,0.96]
[1674199450620,17.0,21.151,21.137,0.96]
[1674199450831,35.46,21.15,21.137,0.96]
[1674199451040,17.0,21.149,21.137,0.96]
[1674199451249,35.47,21.148,21.137,0.96]
[1674199452209,35.47,21.148,21.136,0.96]
[1674199452427,17.0,21.147,21.133,10.0]
[1674199452647,35.47,21.146,21.133,10.0]
[1674199452961,35.47,21.148,21.133,10.0]
[1674199453151,17.0,21.147,21.133,10.0]
[1674199453355,35.47,21.146,21.133,10.0]
[1674199454217,17.0,21.145,21.134,20.0]
[1674199454422,35.47,21.144,21.134,20.0]
[1674199454638,17.0,21.143,21.134,20.0]
[1674199454855,17.0,21.143,21.13,20.0]
[1674199455669,17.0,21.143,21.131,10.96]
[1674199455879,17.0,21.143,21.132,20.0]
[1674199456114,52.47,21.145,21.133,10.0]
[1674199456299,52.47,21.145,21.134,20.0]
[1674199457042,17.0,21.145,21.134,20.0]
[1674199457365,17.0,21.146,21.134,20.0]
[1674199457591,35.47,21.145,21.134,20.0]
[1674199457895,17.0,21.144,21.134,20.0]
[1674199458109,16.8946354,21.144,21.134,20.0]
[1674199458743,35.47,21.147,21.135,10.0]
[1674199458931,35.47,21.149,21.135,10.0]
[1674199459260,10.0,21.148,21.135,10.0]
[1674199459479,35.47,21.147,21.134,20.0]
[1674199459675,10.0,21.146,21.134,20.0]
[1674199460078,52.47,21.145,21.13,10.0]
[1674199460306,52.47,21.145,21.128,10.0]
[1674199460624,10.0,21.144,21.129,1.92]
[1674199460814,10.0,21.144,21.126,10.0]
[1674199460815,10.0,21.142,21.126,10.0]
[1674199461027,52.48,21.141,21.126,10.0]
[1674199462202,52.48,21.141,21.128,0.96]
[1674199462416,52.48,21.141,21.124,10.0]
[1674199462635,10.0,21.14,21.121,147.7877]
[1674199462838,52.48,21.139,21.123,20.0]
[1674199463034,52.48,21.139,21.124,10.0]
[1674199464614,35.48,21.139,21.124,10.0]
[1674199464806,35.48,21.141,21.124,10.0]
[1674199465235,35.48,21.141,21.125,1.92]
[1674199465552,10.0,21.14,21.125,1.92]
[1674199465757,10.0,21.14,21.125,0.96]
[1674199465966,0.09743414,21.125,21.123,30.0]
[1674199467136,0.09743414,21.125,21.124,10.0]
[1674199467350,0.09743414,21.125,21.124,30.96]
[1674199467564,0.09743414,21.125,21.124,31.92]
[1674199468087,35.49,21.137,21.125,10.0]
[1674199468299,35.48,21.138,21.126,1.92]
[1674199468700,35.48,21.138,21.125,10.0]
[1674199468922,17.0,21.137,21.125,10.0]
[1674199469139,35.49,21.136,21.125,10.0]
[1674199469348,17.0,21.135,21.125,10.0]
[1674199469871,35.48,21.139,21.125,10.0]
[1674199470092,35.48,21.14,21.125,10.0]
[1674199470308,35.48,21.14,21.126,1.92]
[1674199471990,35.48,21.141,21.126,1.92]
[1674199473138,35.48,21.141,21.13,30.26]
[1674199473350,35.47,21.147,21.132,10.0]
[1674199473668,10.0,21.15,21.133,21.92]
[1674199473992,35.47,21.149,21.134,10.0]
[1674199474191,35.47,21.149,21.135,1.92]
[1674199475146,17.0,21.148,21.134,10.0]
[1674199475463,35.47,21.149,21.134,10.0]
[1674199475656,35.46,21.151,21.135,1.92]
[1674199475863,35.46,21.152,21.135,1.92]
[1674199476590,17.0,21.151,21.135,1.92]
[1674199476837,35.46,21.15,21.135,1.92]
[1674199477023,17.0,21.149,21.135,1.92]
[1674199477561,17.0,21.151,21.135,1.92]
[1674199477872,35.46,21.15,21.135,1.92]
[1674199478067,35.46,21.152,21.135,1.92]
[1674199478279,35.46,21.152,21.136,10.0]
[1674199478491,35.46,21.152,21.137,1.92]
[1674199479434,117.7118,21.153,21.137,1.92]
[1674199480187,52.46,21.152,21.137,1.92]
[1674199481343,10.0,21.151,21.135,10.0]
[1674199481559,52.46,21.15,21.135,10.0]
[1674199481775,10.0,21.149,21.135,10.0]
[1674199481983,52.47,21.148,21.135,10.0]
[1674199482608,35.47,21.148,21.136,1.92]
[1674199482824,35.46,21.15,21.136,1.92]
[1674199484276,35.46,21.15,21.135,10.0]
[1674199484489,27.0,21.149,21.135,10.0]
[1674199484700,35.47,21.148,21.135,10.0]
[1674199485637,17.0,21.147,21.135,10.0]
[1674199486278,17.0,21.147,21.134,10.0]
[1674199486486,35.47,21.146,21.134,10.0]
[1674199486702,17.0,21.145,21.134,10.0]
[1674199486914,35.47,21.144,21.134,10.0]
[1674199487122,17.0,21.143,21.134,10.0]
[1674199487547,10.0,21.147,21.134,10.0]
[1674199487548,35.47,21.146,21.134,10.0]
[1674199487761,35.47,21.148,21.134,10.0]
[1674199487956,17.0,21.147,21.134,10.0]
[1674199488168,35.47,21.146,21.134,10.0]
[1674199488371,117.7118,21.153,21.134,10.0]
[1674199488372,35.46,21.152,21.134,10.0]
[1674199488594,10.0,21.151,21.134,10.0]
[1674199488898,35.46,21.15,21.135,1.92]
[1674199489637,17.0,21.149,21.135,1.92]
[1674199490185,35.47,21.148,21.135,1.92]
[1674199490364,35.46,21.151,21.135,1.92]
[1674199491850,35.46,21.152,21.136,10.0]
[1674199492047,35.46,21.152,21.137,18.92]
[1674199492265,35.46,21.152,21.138,10.0]
[1674199492472,35.46,21.152,21.139,1.92]
[1674199499322,17.0,21.151,21.138,10.0]
[1674199499529,35.46,21.15,21.138,10.0]
[1674199500392,35.46,21.15,21.136,10.0]
[1674199500574,17.0,21.149,21.134,10.0]
[1674199500787,35.47,21.148,21.134,10.0]
[1674199501028,17.0,21.147,21.134,10.0]
[1674199501205,35.47,21.146,21.134,10.0]
[1674199502282,35.47,21.146,21.135,0.96]
[1674199502592,35.47,21.146,21.136,0.96]
[1674199502916,35.46,21.151,21.137,0.96]
[1674199503133,35.46,21.152,21.138,10.96]
[1674199503436,35.46,21.152,21.139,0.96]
[1674199503623,35.46,21.152,21.14,0.96]
[1674199504044,35.46,21.152,21.141,0.96]
[1674199505753,35.46,21.152,21.142,0.96]
[1674199506457,35.46,21.152,21.143,0.96]
[1674199506671,35.46,21.152,21.144,0.96]
[1674199507115,35.46,21.152,21.138,10.0]
[1674199507631,35.46,21.152,21.139,1.92]
[1674199508143,35.46,21.152,21.139,0.96]
[1674199508688,10.0,21.151,21.139,0.96]
[1674199508902,35.46,21.15,21.139,0.96]
[1674199509748,35.46,21.15,21.14,0.96]
[1674199510059,35.46,21.15,21.139,1.92]
[1674199510881,35.46,21.152,21.14,0.96]
[1674199511620,35.46,21.152,21.134,10.0]
[1674199511941,10.0,21.15,21.134,10.0]
[1674199512168,52.47,21.149,21.134,10.0]
[1674199513111,52.47,21.149,21.136,0.96]
[1674199513420,52.47,21.149,21.136,1.92]
[1674199514365,35.45,21.156,21.14,20.33]
[1674199514574,35.45,21.157,21.141,0.96]
[1674199514772,113.9918,21.158,21.142,0.96]
[1674199514977,113.9918,21.158,21.142,24.24530689]
[1674199515189,113.9918,21.158,21.143,20.96]
[1674199515407,35.44,21.162,21.144,0.96]
[1674199515616,35.44,21.162,21.144,14.24530689]
[1674199515947,35.44,21.163,21.15,20.21]
[1674199516148,35.44,21.163,21.151,0.96]
[1674199516364,35.44,21.163,21.152,0.96]
[1674199516559,35.44,21.167,21.153,0.96]
[1674199516765,35.44,21.167,21.154,0.96]
[1674199516988,35.44,21.167,21.155,0.96]
[1674199517185,35.44,21.167,21.156,0.96]
[1674199517396,35.42,21.174,21.157,0.96]
[1674199517607,35.42,21.174,21.158,0.96]
[1674199517823,35.42,21.174,21.159,0.96]
[1674199518029,35.42,21.174,21.16,0.96]
[1674199518370,35.42,21.174,21.161,0.96]
[1674199518684,20.33,21.19,21.161,0.96]
[1674199518685,35.41,21.185,21.162,14.24530689]
[1674199519008,35.41,21.185,21.163,24.24530689]
[1674199519199,35.41,21.185,21.164,20.96]
[1674199519388,35.41,21.185,21.165,10.0]
[1674199519598,35.41,21.185,21.166,1.92]
[1674199519831,10.0,21.184,21.166,15.20530689]
[1674199520018,35.41,21.183,21.166,15.20530689]
[1674199520228,35.41,21.183,21.167,23.28530689]
[1674199520561,35.41,21.183,21.168,1.92]
[1674199521289,35.41,21.183,21.17,20.33]
[1674199521517,35.4,21.188,21.172,10.0]
[1674199521823,35.4,21.188,21.174,10.0]
[1674199522045,35.4,21.188,21.175,0.96]
[1674199522233,35.4,21.188,21.176,0.96]
[1674199522435,3.68e-05,21.179,21.176,0.96]
[1674199522648,3.68e-05,21.179,21.177,0.96]
[1674199522987,3.68e-05,21.179,21.178,0.96]
[1674199523299,3.68e-05,21.179,21.178,32.20530689]
[1674199523492,35.39,21.196,21.179,10.0]
[1674199523703,35.39,21.196,21.18,42.18]
[1674199523909,35.39,21.196,21.181,10.0]
[1674199524116,35.37,21.206,21.182,1.92]
[1674199524322,35.37,21.206,21.182,21.92]
[1674199524537,35.37,21.206,21.183,13.28530689]
[1674199524754,10.0,21.195,21.184,20.0]
[1674199524975,35.39,21.194,21.184,20.0]
[1674199525195,35.39,21.194,21.18,20.0]
[1674199525377,35.39,21.194,21.181,1.92]
[1674199525587,35.39,21.194,21.177,10.0]
[1674199525588,10.0,21.192,21.177,10.0]
[1674199525810,10.0,21.19,21.176,13.28530689]
[1674199526022,52.4,21.189,21.167,10.0]
[1674199526232,52.4,21.189,21.167,23.28530689]
[1674199526660,10.0,21.188,21.167,23.28530689]
[1674199526851,52.4,21.187,21.172,23.28530689]
[1674199527377,52.4,21.187,21.173,13.28530689]
[1674199527588,10.0,21.186,21.174,0.96]
[1674199528347,10.0,21.186,21.174,20.96]
[1674199528557,17.0,21.185,21.174,20.0]
[1674199528749,17.0,21.185,21.173,20.0]
[1674199529393,125.6018,21.186,21.173,20.0]
[1674199529720,125.6018,21.186,21.174,0.96]
[1674199529901,125.6018,21.186,21.173,33.28530689]
[1674199529902,125.6018,21.186,21.175,0.96]
[1674199530246,125.6018,21.186,21.174,14.24530689]
[1674199530425,125.6018,21.186,21.175,0.96]
[1674199531705,10.0,21.184,21.174,14.24530689]
[1674199531916,10.0,21.184,21.173,20.0]
[1674199532130,10.0,21.182,21.169,13.28530689]
[1674199532314,10.0,21.182,21.17,20.0]
[1674199532731,10.0,21.182,21.17,33.28530689]
[1674199533155,10.0,21.182,21.17,20.0]
[1674199533365,10.0,21.182,21.168,20.0]
[1674199533594,10.0,21.182,21.167,23.28530689]
[1674199533921,35.41,21.181,21.169,13.28530689]
[1674199534116,125.6018,21.186,21.169,13.28530689]
[1674199534117,115.6018,21.186,21.17,20.26]
[1674199534336,115.6018,21.186,21.171,17.0]
[1674199534642,115.6018,21.186,21.172,10.0]
[1674199534849,115.6018,21.186,21.172,23.28530689]
[1674199535045,115.6018,21.186,21.174,10.0]
[1674199535255,35.4,21.189,21.175,1.92]
[1674199535478,35.4,21.191,21.175,1.92]
[1674199535701,35.4,21.191,21.175,32.20530689]
[1674199536008,10.0,21.193,21.176,23.28530689]
[1674199536343,35.39,21.192,21.177,1.92]
[1674199536524,10.0,21.193,21.177,1.92]
[1674199536845,10.0,21.193,21.177,15.20530689]
[1674199537169,35.39,21.194,21.178,10.0]
[1674199537368,45.39,21.195,21.179,1.92]
[1674199539068,17.0,21.194,21.179,1.92]
[1674199539262,35.39,21.193,21.18,13.28530689]
[1674199539593,35.39,21.194,21.181,1.92]
[1674199539803,35.39,21.194,21.181,0.96]
[1674199540117,35.39,21.194,21.18,0.96]
[1674199540312,10.0,21.193,21.181,0.96]
[1674199540521,10.0,21.193,21.18,0.96]
[1674199540942,35.39,21.194,21.18,0.96]
[1674199541261,35.39,21.194,21.18,14.24530689]
[1674199541480,10.0,21.193,21.181,0.96]
[1674199541792,35.39,21.194,21.18,0.96]
[1674199542008,35.39,21.194,21.181,0.96]
[1674199542198,35.39,21.194,21.18,0.96]
[1674199542406,45.39,21.195,21.18,0.96]
[1674199542636,45.39,21.195,21.18,10.96]
[1674199542849,45.39,21.195,21.181,0.96]
[1674199543045,45.39,21.195,21.181,20.96]
[1674199543253,10.0,21.194,21.182,0.96]
[1674199543686,10.0,21.194,21.178,18.876092]
[1674199544002,35.39,21.193,21.178,18.876092]
[1674199544547,27.0,21.192,21.178,18.876092]
[1674199544722,35.4,21.191,21.178,18.876092]
[1674199545051,10.0,21.189,21.165,10.0]
[1674199545241,56.36,21.188,21.165,10.0]
[1674199545457,17.96,21.187,21.164,10.0]
[1674199545678,10.0,21.185,21.164,10.0]
[1674199545869,52.41,21.184,21.164,10.0]
[1674199546293,52.41,21.184,21.164,28.892064]
[1674199546521,10.0,21.183,21.164,28.892064]
[1674199546730,52.41,21.182,21.164,28.892064]
[1674199547128,52.41,21.182,21.165,1.92]
[1674199547980,10.0,21.181,21.165,1.92]
[1674199548207,52.41,21.18,21.165,1.92]
[1674199548603,17.0,21.18,21.165,1.92]
[1674199549572,17.0,21.18,21.165,0.96]
[1674199549779,35.42,21.179,21.164,18.892064]
[1674199550102,10.0,21.177,21.164,18.892064]
[1674199550312,35.42,21.176,21.164,18.892064]
[1674199550631,10.0,21.174,21.164,18.892064]
[1674199550826,10.0,21.172,21.164,18.892064]
[1674199551035,10.0,21.17,21.164,18.892064]
[1674199551248,10.0,21.17,21.152,10.0]
[1674199551249,35.43,21.169,21.152,10.0]
[1674199551572,17.0,21.168,21.152,10.0]
[1674199551783,45.44,21.167,21.147,10.0]
[1674199551970,45.44,21.167,21.147,23.28530689]
[1674199552183,35.44,21.167,21.148,33.28530689]
[1674199552392,35.44,21.167,21.149,10.0]
[1674199552709,35.44,21.167,21.151,10.0]
[1674199552920,35.44,21.167,21.152,21.92]
[1674199553142,35.44,21.167,21.153,10.0]
[1674199553355,35.44,21.167,21.154,21.92]
[1674199553669,35.44,21.167,21.155,10.0]
[1674199554707,35.44,21.167,21.154,20.0]
[1674199555126,17.0,21.168,21.155,10.0]
[1674199555338,35.43,21.171,21.155,10.0]
[1674199555548,17.0,21.17,21.155,10.0]
[1674199555759,10.0,21.168,21.155,10.0]
[1674199555965,35.44,21.167,21.154,20.0]
[1674199556188,52.44,21.167,21.154,20.0]
[1674199556824,52.44,21.167,21.155,10.0]
[1674199557234,52.44,21.167,21.156,0.96]
[1674199557235,35.44,21.167,21.156,0.96]
[1674199557558,35.43,21.171,21.157,0.96]
[1674199557771,35.43,21.172,21.158,0.96]
[1674199558186,35.43,21.172,21.159,0.96]
[1674199558597,17.0,21.171,21.16,0.96]
[1674199558808,35.43,21.17,21.16,0.96]
[1674199559573,17.0,21.171,21.159,0.96]
[1674199559766,10.0,21.17,21.155,10.0]
[1674199559974,17.0,21.169,21.156,0.96]
[1674199560192,35.43,21.168,21.154,20.0]
[1674199560395,17.0,21.167,21.155,10.0]
[1674199560609,35.44,21.166,21.155,10.0]
[1674199560812,35.43,21.169,21.155,10.0]
[1674199561143,35.43,21.171,21.155,10.0]
[1674199561469,17.0,21.17,21.155,10.0]
[1674199561781,35.43,21.171,21.156,1.92]
[1674199561986,35.43,21.172,21.156,1.92]
[1674199563863,17.0,21.171,21.156,0.96]
[1674199564081,35.43,21.17,21.156,0.96]
[1674199564296,35.43,21.17,21.155,10.0]
[1674199564297,17.0,21.169,21.155,10.0]
[1674199564507,35.43,21.17,21.155,10.0]
[1674199564721,35.43,21.172,21.155,10.0]
[1674199564941,10.0,21.171,21.155,10.0]
[1674199565119,35.43,21.17,21.155,10.0]
[1674199565337,10.96,21.169,21.154,20.0]
[1674199565541,35.43,21.168,21.15,20.0]
[1674199565755,10.0,21.167,21.15,20.0]
[1674199565967,52.44,21.166,21.15,20.0]
[1674199566387,52.44,21.166,21.151,10.0]
[1674199566620,52.44,21.166,21.152,20.96]
[1674199566933,52.44,21.166,21.152,21.92]
[1674199567249,52.44,21.166,21.153,10.0]
[1674199567460,52.44,21.166,21.154,21.92]
[1674199568086,17.0,21.166,21.154,21.92]
[1674199568295,17.0,21.167,21.154,21.92]
[1674199568507,35.44,21.166,21.154,21.92]
[1674199568706,17.0,21.165,21.154,20.0]
[1674199568906,10.0,21.164,21.154,20.0]
[1674199569122,17.0,21.163,21.152,20.0]
[1674199572491,17.0,21.165,21.152,20.0]
[1674199573146,20.33,21.18,21.153,0.96]
[1674199573340,108.7896,21.179,21.16,20.29]
[1674199573565,108.7896,21.179,21.161,57.37]
[1674199574290,10.0,21.178,21.162,10.0]
[1674199574483,10.0,21.178,21.163,57.36]
[1674199574693,10.0,21.178,21.164,10.0]
[1674199574922,108.7896,21.179,21.164,10.0]
[1674199575119,108.7896,21.179,21.165,1.92]
[1674199576188,108.7896,21.179,21.166,0.96]
[1674199576393,108.7896,21.179,21.167,0.96]
[1674199576714,35.41,21.184,21.168,0.96]
[1674199576922,114.7045,21.186,21.168,0.96]
[1674199577234,114.7045,21.186,21.169,0.96]
[1674199577556,114.7045,21.186,21.17,0.96]
[1674199577763,35.41,21.185,21.168,35.43]
[1674199577958,59.16576951,21.185,21.165,115.8769]
[1674199578169,10.0,21.183,21.166,1.92]
[1674199578479,52.41,21.182,21.165,115.8769]
[1674199578912,10.0,21.181,21.165,115.8769]
[1674199579115,52.41,21.18,21.165,115.8769]
[1674199579321,10.0,21.179,21.161,10.0]
[1674199579545,17.0,21.178,21.161,10.0]
[1674199579757,52.42,21.178,21.161,10.0]
[1674199579958,10.0,21.177,21.162,20.96]
[1674199580169,17.0,21.176,21.162,20.96]
[1674199581002,17.0,21.176,21.162,20.0]
[1674199581213,10.0,21.175,21.162,20.0]
[1674199581439,17.0,21.174,21.162,20.0]
[1674199581969,10.0,21.173,21.16,20.0]
[1674199582152,17.0,21.172,21.159,10.0]
[1674199582365,35.43,21.171,21.159,10.0]
[1674199582892,17.0,21.172,21.159,10.0]
[1674199583326,17.0,21.172,21.156,10.0]
[1674199583523,52.43,21.172,21.156,10.0]
[1674199583732,17.0,21.172,21.156,10.0]
[1674199584700,17.0,21.172,21.158,0.96]
[1674199584909,17.0,21.172,21.159,0.96]
[1674199585643,52.43,21.172,21.159,0.96]
[1674199585834,17.0,21.172,21.159,0.96]
[1674199587524,35.43,21.172,21.159,0.96]
[1674199587741,10.0,21.173,21.16,0.96]
[1674199588162,17.0,21.172,21.161,0.96]
[1674199588698,35.41,21.18,21.162,14.24530689]
[1674199588912,35.41,21.18,21.163,10.96]
[1674199589101,35.41,21.18,21.164,20.96]
[1674199589308,35.41,21.18,21.165,0.96]
[1674199589527,10.0,21.181,21.165,10.96]
[1674199589757,10.0,21.181,21.166,0.96]
[1674199589941,10.0,21.181,21.167,0.96]
[1674199590697,17.0,21.18,21.167,0.96]
[1674199591619,17.0,21.18,21.165,10.0]
[1674199591954,10.0,21.179,21.164,20.0]
[1674199592164,17.0,21.178,21.164,20.0]
[1674199592357,35.42,21.177,21.164,20.0]
[1674199592569,17.0,21.176,21.164,20.0]
[1674199592777,35.42,21.175,21.162,20.0]
[1674199593001,10.0,21.173,21.162,20.0]
[1674199593216,17.0,21.172,21.162,20.0]
[1674199593931,35.43,21.171,21.151,45.46]
[1674199594141,10.0,21.169,21.152,20.0]
[1674199594361,52.43,21.168,21.151,10.0]
[1674199594785,10.0,21.167,21.151,10.0]
[1674199594996,52.44,21.166,21.151,10.0]
[1674199595618,52.44,21.166,21.152,1.92]
[1674199595840,17.0,21.166,21.153,10.0]
[1674199596053,17.0,21.167,21.154,21.92]
[1674199596271,35.44,21.166,21.154,21.92]
[1674199596456,17.0,21.165,21.154,20.0]
[1674199596678,17.0,21.165,21.155,10.0]
[1674199597096,10.0,21.166,21.154,20.0]
[1674199597303,17.0,21.165,21.154,20.0]
[1674199597731,35.43,21.168,21.155,10.0]
[1674199597955,10.0,21.169,21.156,0.96]
[1674199598380,35.43,21.17,21.156,0.96]
[1674199598699,35.43,21.173,21.157,0.96]
[1674199598891,35.42,21.174,21.158,36.41]
[1674199599097,114.6746,21.175,21.158,36.41]
[1674199599098,114.6746,21.175,21.159,10.96]
[1674199599325,114.6746,21.175,21.161,10.0]
[1674199599526,114.6746,21.175,21.162,21.92]
[1674199599954,114.6746,21.175,21.163,10.0]
[1674199600166,114.6746,21.175,21.164,20.0]
[1674199600789,10.0,21.173,21.162,20.0]
[1674199601002,17.0,21.172,21.159,10.0]
[1674199601202,17.0,21.172,21.16,20.0]
[1674199601731,17.0,21.173,21.16,20.0]
[1674199602252,17.0,21.173,21.161,10.0]
[1674199602464,17.0,21.173,21.162,20.0]
[1674199603007,10.0,21.172,21.162,20.0]
[1674199603210,17.0,21.171,21.16,20.0]
[1674199603850,17.0,21.171,21.161,10.0]
[1674199604039,27.0,21.173,21.161,10.0]
[1674199604247,35.43,21.172,21.159,10.0]
[1674199604452,17.0,21.171,21.159,10.0]
[1674199604669,10.0,21.17,21.158,10.0]
[1674199604896,10.0,21.168,21.153,45.46]
[1674199605110,17.0,21.167,21.153,10.0]
[1674199605930,17.0,21.167,21.154,20.96]
[1674199606560,17.0,21.167,21.155,10.0]
[1674199607722,35.43,21.169,21.155,10.0]
[1674199607932,35.43,21.171,21.156,1.92]
[1674199608348,35.42,21.174,21.157,13.28530689]
[1674199608574,35.41,21.18,21.158,37.37]
[1674199608780,10.0,21.179,21.16,10.0]
[1674199608985,35.42,21.178,21.161,1.92]
[1674199609214,35.42,21.178,21.161,21.92]